Cogmind - Beta 11.1 @@@ ROGUE MODE // 2022.04.28 @ 21:35:25 Player: Mousetrap_ Result: Self-destructed Performance ------------- Evolutions (1) 500 Regions Visited (2) 400 Robots Destroyed (27) 135 Value Destroyed (479) 479 Prototype IDs (1) 20 Alien Tech Used (0) 0 Bonus (0) 0 TOTAL SCORE: 1534 Bonus ------- None Cogmind --------- Core Integrity 330/400 Matter 290/300 Energy 400/400 System Corruption 0% Temperature Cool (0) Movement Treading (240) Ox1 Location -9/Materials Parts ------- > --- POWER (2) -------- Ion Engine Ion Engine > --- PROPULSION (2) --- Light Treads Light Treads > --- UTILITY (3) ------ Large Storage Unit Structural Scanner Visual Processing Unit > --- WEAPON (2) ------- Assault Rifle Assault Rifle > --- INVENTORY (15) --- Aluminum Leg Medium Laser Small Laser Particle Cannon Particle Cannon Particle Cannon Light Assault Rifle Datajack Peak State ------------ > --- POWER ------------ Ion Engine Ion Engine > --- PROPULSION ------- Light Treads Light Treads > --- UTILITY ---------- Large Storage Unit Structural Scanner Visual Processing Unit > --- WEAPON ----------- Particle Cannon Improved Assault Rifle > --- INVENTORY -------- Medium Laser Small Laser Particle Cannon Particle Cannon Assault Rifle Assault Rifle Light Assault Rifle Datajack [Rating: 14] Favorites ----------- Power Ion Engine Engine Ion Engine Propulsion Aluminum Leg Treads Light Treads Leg Aluminum Leg Utility Structural Scanner Device Structural Scanner Storage Large Storage Unit Processor Visual Processing Unit Weapon Particle Cannon Energy Gun Medium Laser Energy Cannon Particle Cannon Ballistic Gun Assault Rifle Special Weapon Mining Laser Build | -11 -10 -9 ------- Run | Scr Mat Mat Slots Evolved 2 | . . 2 Power 1 | . . 1 Propulsion . | . . . Utility 1 | . . 1 Weapon . | . . . Parts Attached 31 | 8 11 12 Power 3 | 1 . 2 Engine 3 | 1 . 2 Core . | . . . Reactor . | . . . Propulsion 9 | 2 2 5 Treads 6 | . 2 4 Leg 3 | 2 . 1 Wheel . | . . . Hover . | . . . Flight . | . . . Utility 7 | 2 4 1 Device 3 | 1 1 1 Storage 2 | 1 1 . Processor 2 | . 2 . Hackware . | . . . Protection . | . . . Artifact . | . . . Weapon 12 | 3 5 4 Energy Gun 1 | 1 . . Energy Cannon 5 | . 4 1 Ballistic Gun 5 | 1 1 3 Ballistic Cannon . | . . . Launcher . | . . . Special Weapon 1 | 1 . . Impact Weapon . | . . . Slashing Weapon . | . . . Piercing Weapon . | . . . Special Melee Weapon . | . . . Unidentified Prototypes 1 | . . 1 Parts Lost . | . . . Power . | . . . Propulsion . | . . . Utility . | . . . Weapon . | . . . Highest Loss Streak . | . . . To Critical Strikes . | . . . Average Slot Usage (%) 96 | . 99 91 Engine 14 | . 14 15 Treads 13 | . 9 19 Leg 10 | . 18 . Device 10 | . 10 11 Storage 12 | . 14 11 Processor 6 | . 3 11 Energy Cannon 18 | . 22 12 Ballistic Gun 5 | . 2 9 Naked Turns . | . . . Heaviest Build 38 | 15 34 38 Greatest Support 40 | 20 40 20 Greatest Overweight (x) 11 | . 1 11 Average Overweight (x) . | . . 1 Largest Inventory Capacity 15 | 8 15 15 Average Capacity 11 | 7 11 15 Most Carried 11 | 8 8 11 Average Carried 7 | 6 7 7 Final Capacity 15 | 8 15 15 Final Carried 8 | 8 8 8 Class Distribution -------------------- 100% | Mutant Dominant Class ---------------- Mutant | -10/Materials Mutant | -9/Materials Resources | -11 -10 -9 ----------- Run | Scr Mat Mat Matter Collected 656 | 280 111 265 Remotely . | . . . Salvage Created 818 | 255 248 315 Parts 60 | 23 18 19 Haulers Intercepted . | . . . Recyclers Shooed . | . . . Parts Field Recycled . | . . . Retrieved Matter . | . . . Parts Self-Destructed . | . . . Prevented . | . . . Kills | -11 -10 -9 ------- Run | Scr Mat Mat Combat Hostiles Destroyed 12 | . 6 6 Guns 5 | . . 5 Cannons 7 | . 6 1 Classes Destroyed 6 | 3 3 . Worker 4 | 2 1 1 Tunneler 7 | 6 . 1 Recycler 1 | 1 . . Watcher 3 | . 2 1 Swarmer 3 | . 3 . Grunt 9 | . 3 6 Best Kill Streak 5 | 5 4 4 Combat Bots Only 4 | . 3 4 Max Kills in Single Turn 1 | 1 1 1 Gunslinging . | . . . Exploded . | . . . Melee . | . . . Uniques/NPCs Destroyed . | . . . Combat | -11 -10 -9 -------- Run | Scr Mat Mat Damage Taken 730 | . 307 423 Core 161 | . 91 70 Absorbed by Shields . | . . . Core Remaining (%) 81 | 100 63 . Volleys Fired 83 | 32 29 22 Largest 2 | 1 2 2 Hottest 136 | 50 136 136 Shots Fired 133 | 32 57 44 Gun 62 | 32 . 30 Cannon 71 | . 57 14 Launcher . | . . . Special . | . . . Kinetic 30 | . . 30 Thermal 103 | 32 57 14 Explosive . | . . . Electromagnetic . | . . . Robot Hit Streak 15 | 11 3 15 Robot Miss Streak 7 | 2 7 3 Penetration Max . | . . . Secondary Targets . | . . . Shots Hit Robots 78 | 24 21 33 Core Hits 33 | 10 10 13 Critical Kills . | . . . Critical Parts Destroyed . | . . . Critical Strikes 1 | 1 . . Burn 1 | 1 . . Melee Attacks . | . . . Impact . | . . . Slashing . | . . . Piercing . | . . . Sneak Attacks . | . . . Combat Hostiles . | . . . Follow-up Attacks . | . . . Damage Inflicted 1328 | 298 450 580 Guns 630 | 298 . 332 Cannons 698 | . 450 248 Explosions . | . . . Melee . | . . . Ramming . | . . . Kinetic 332 | . . 332 Thermal 996 | 298 450 248 Explosive . | . . . Electromagnetic . | . . . Impact . | . . . Slashing . | . . . Piercing . | . . . Highest Corruption . | . . . Average Corruption . | . . . Corruption Purged . | . . . Corruption Blocked . | . . . Overload Shots . | . . . Overflow Damage 8 | . 2 6 Projectiles 8 | . 2 6 Explosions . | . . . Melee . | . . . Knockbacks . | . . . Impact . | . . . Kinetic . | . . . Secondary . | . . . Self-Inflicted Damage . | . . . Shots . | . . . Rammed . | . . . Targets Rammed . | . . . Kicked . | . . . Crushed . | . . . Highest Temperature 720 | 90 720 402 Average Temperature 186 | 25 255 181 Received Heat Transfer 327 | . 90 237 Effects 24 | . 22 2 Shutdowns 6 | . 6 . Energy Bleed 7 | . 6 1 Interference 4 | . 4 . Matter Decay 1 | . 1 . Short Circuit 3 | . 3 . Damage (minor) 1 | . . 1 Damage (core) 2 | . 2 . Siege Activations . | . . . Robots Corrupted . | . . . Combat Hostiles . | . . . Parts Fried . | . . . Impact Corruptions . | . . . Robots Melted . | . . . Combat Hostiles . | . . . Parts Melted 4 | 2 2 . Heat Transferred 2220 | 962 814 444 Parts Sabotaged . | . . . Parts Stolen . | . . . Parts Stripped . | . . . Power Chain Reactions . | . . . Missiles Intercepted . | . . . Alert | -11 -10 -9 ------- Run | Scr Mat Mat Peak Influence 228 | 45 228 111 Initial 29 | . 29 11 Average 57 | 19 101 31 Maximum Alert Level 1 | . 1 . Low Security (%) 93 | 100 84 100 Level 1 6 | . 15 . Level 2 . | . . . Level 3 . | . . . Level 4 . | . . . Level 5 . | . . . High Security . | . . . Max Security . | . . . Squads Dispatched 3 | . 1 2 Investigation 2 | . . 2 Extermination . | . . . Reinforcement 1 | . 1 . Assault . | . . . Garrison . | . . . Intercept . | . . . Searches Triggered . | . . . Construction Impeded . | . . . Haulers Reinforced . | . . . Active Scanning Responses . | . . . Cargo Convoy Interrupts . | . . . Stealth | -11 -10 -9 --------- Run | Scr Mat Mat Distress Signals 2 | . 1 1 Communications Jammed . | . . . Distress Signals . | . . . Times Spotted 25 | . 10 15 Peak Tracking Total 7 | . 4 7 Tactical Retreats . | . . . Traps | -11 -10 -9 ------- Run | Scr Mat Mat Traps Triggered 1 | . . 1 Indirectly . | . . . Trap Hack Attempts . | . . . Triggered . | . . . Disarmed . | . . . Reprogrammed . | . . . Reused . | . . . Traps Extracted . | . . . Installed . | . . . Triggered . | . . . Machines | -11 -10 -9 ---------- Run | Scr Mat Mat Machines Disabled 1 | . 1 . Max in Single Turn 1 | . 1 . Machines Sabotaged . | . . . Garrisons Compromised . | . . . Overloaded Fab Kills . | . . . Hacking | -11 -10 -9 --------- Run | Scr Mat Mat Machines Accessed 2 | . 1 1 Terminals 2 | . 1 1 Fabricators . | . . . Repair Stations . | . . . Recycling Units . | . . . Scanalyzers . | . . . Garrison Access . | . . . Total Hacks 4 | . 1 3 Successful 3 | . 1 2 Failed 1 | . . 1 Catastrophic . | . . . Database Lockouts . | . . . Manual . | . . . Terminals 4 | . 1 3 Fabricators . | . . . Repair Stations . | . . . Recycling Units . | . . . Scanalyzers . | . . . Garrison Access . | . . . Terminal Hacks 3 | . 1 2 Unreport Threat 1 | . . 1 Maintenance Status 1 | . 1 . Recall Investigation 1 | . . 1 Fabricator Hacks . | . . . Repair Station Hacks . | . . . Recycling Unit Hacks . | . . . Scanalyzer . | . . . Garrison Access Hacks . | . . . Unauthorized Hacks . | . . . Terminals . | . . . Fabricators . | . . . Repair Stations . | . . . Recycling Units . | . . . Scanalyzers . | . . . Garrison Access . | . . . Data Cores Recovered . | . . . Used . | . . . Hacking Detections 1 | . . 1 Full Trace Events 1 | . . 1 Feedback Events . | . . . Feedback Blocked . | . . . Robot Schematics Acquired . | . . . Robots Built . | . . . Authchips . | . . . Time . | . . . Total Robot Build Rating . | . . . Part Schematics Acquired . | . . . Parts Built . | . . . Authchips . | . . . Time . | . . . Total Part Build Rating . | . . . Parts Repaired . | . . . Time . | . . . Parts Recycled . | . . . Recycled Matter . | . . . Retrieved Matter . | . . . Retrieved Components . | . . . Parts Scanalyzed . | . . . Part Schematics Acquired . | . . . Parts Damaged . | . . . Bothacking | -11 -10 -9 ------------ Run | Scr Mat Mat Used RIF Installer . | . . . Robots Hacked . | . . . Non-combat . | . . . Combat . | . . . Robot Hacks Applied . | . . . Relay Couplers Released . | . . . Fabnet Peak Effective % . | . . . Robots Rewired . | . . . Allies Hacked . | . . . Hacks Repelled . | . . . Allies | -11 -10 -9 -------- Run | Scr Mat Mat Total Allies . | . . . Largest Group . | . . . Highest-Rated Group . | . . . Highest-Rated Ally . | . . . Total Orders . | . . . Ally Attacks . | . . . Total Damage . | . . . Kills . | . . . Allies Corrupted . | . . . Allies Melted . | . . . Intel | -11 -10 -9 ------- Run | Scr Mat Mat Robot Analysis Total . | . . . Derelict Logs Recovered . | . . . Drone Launches . | . . . Drone Recoveries . | . . . Exploration | -11 -10 -9 ------------- Run | Scr Mat Mat Turns Passed 1038 | 298 429 311 Spaces Moved 436 | 182 178 76 Core 7 | 5 . 2 Treads 119 | . 45 74 Legs 310 | 177 133 . Wheels . | . . . Hover . | . . . Flight . | . . . Fastest Speed 50 | 50 120 240 Average Speed 157 | 118 157 249 Slowest Speed 600 | 120 240 600 Overloaded Moves . | . . . Propulsion Burnouts . | . . . Robots Hopped . | . . . Cave-ins Triggered . | . . . Exploration Rate (%) 16 | 8 31 10 Regions Visited 2 Branch Regions . Pre-discovered Areas . | . . . Known Exits Taken . | . . . Unknown Exits Taken 2 | 1 1 . Scrap Searched . | . . . Spaces Dug . | . . . Terrain Destroyed . | . . . Melee . | . . . Projectile . | . . . AOE . | . . . Terrain Rammed . | . . . Walls Destroyed . | . . . Machines Disabled . | . . . Actions | -11 -10 -9 --------- Run | Scr Mat Mat Total 654 | 229 272 153 Wait 72 | . 39 33 Move 434 | 181 177 76 Hop . | . . . Pick Up 14 | 8 5 1 Fast Attach 15 | 7 4 4 Attach 6 | . 2 4 Detach 6 | . 1 5 Swap 10 | 1 5 4 Drop 14 | . 10 4 Fire 83 | 32 29 22 Melee . | . . . Ram . | . . . Kick . | . . . Crush . | . . . Escape Stasis . | . . . Rewire . | . . . Trap . | . . . Miscellaneous . | . . . Route ------- -11/Scrapyard -10/Materials -9/Materials History --------- Turn | Location | Event 14 | -11/Scrapyard | Discovered new exit (range 15) 299 | -11/Scrapyard | Entered Materials 300 | -10/Materials | Build established: Mutant 703 | -10/Materials | Discovered new exit (range 5) 728 | -10/Materials | Entered another Materials area 728 | -9/Materials | Evolved 2 slots: Power x1, Utility x1 1039 | -9/Materials | Self-destructed Last Messages --------------- 00939_ ALERT: Suspicious activity at Terminal M012. Dispatching Investigation squad. 00942_ K-01 Serf cleans the Terminal. 00984_ G-34 Mercenary destroyed. 00986_ K-01 Serf collects debris. 00987_ W-16 Scout destroyed. 00989_ K-01 Serf collects debris. 00995_ W-16 Scout sends out distress signal. 00999_ G-34 Mercenary destroyed. 01000_ K-01 Serf collects debris. 01002_ T-07 Excavator destroyed. 01002_ R-06 Scavenger collects Wheel. 01005_ Acquired 48 matter. 01005_ R-06 Scavenger collects Imp. Terrain Scanner. 01009_ R-06 Scavenger collects Sml. Laser. 01015_ R-06 Scavenger collects Aluminum Leg. 01022_ Acquired 6 matter. 01028_ Acquired 10 matter. 01038_ Dropped Ion Engine. 01038_ Dropped Imp. Assault Rifle. Map ----- +----------------------------------------------------+ | ?????????????????????????????????????????????????? | | ?????????????????????????????????????????????????? | | ?????????????????????????????????????????????????? | | ?????????????????????????????????????????????????? | | ?????????????????????????????????????????????????? | | ?????????????????????????????????????????????????? | | ?????????????????????????????????????????????????? | | ?????????????????????????????????????????????????? | | ?????????????????????????????????????????????????? | | ?????????????????????????????????????????????????? | | ?????????????????????????????????????????????????? | | ?????????????????????????????????????????????????? | | ?????????????????????????????????????????????????? | | ????????????????????###??????????????????????????? | | ????????????????????####?????????????????????????? | | ???????????????????? !##???? #######?????????????? | | ????????????????????? !#???? #######?????????????? | | ??????????????????????!## ?? # ?????????????? | | ?????????????????????? ## ?? # ???????????????? | | ?????????????????????? + ?? # ??????????????? | | ?????????????????????? # ?? # ##??????????????? | | ????????????????????? # ?? # ###### ### ?????? | | ?????????????????????## # ?? # ######+### ?????? | | ???????????????????#### # # ### # ?????? | | ???????????????????####/###### ### """" # ?????? | | ???????????????????## %tY@* # ### """" # ?????? | | ???????????????????## [% # ### """" # ?????? | | ???????????????????## ! !# # # ?????? | | ???????????????????## %# " % # """" ##?????? | | ???????????????????## *+ "T + """" ##?????? | | ???????????????????## # # """" ##?????? | | ???????????????????## # # ######?? | | ??????????????????? # ## ##+###########?? | | ??????????????????? # ## # ##?? | | ??????????????????? ########### # ""##?? | | ??????????????????? ########### + """ T"##?? | | ?????????????????????????????## # """ ""##?? | | ?????????????????????????????## # """ ##?? | | ?????????????????????????????## # """ ##?? | | ?????????????????????????????## # ##?? | | ?????????????????????????????## ##############?? | | ?????????????????????########## ##############?? | | ?????????????????????########## ##?????????????? | | ????????????????????? # ##?????????????? | | ??????????????????????? # ##?????????????? | | ??????????????????????? """ # ##?????????????? | | ??????????????????????? """"" # ##?????????????? | | ??????????????????? # """"" # ##?????????????? | | ??????????????????? # """"" # ##?????????????? | | ??????????????????? # """ + ##?????????????? | +----------------------------------------------------+ Best States ------------- Heat Dissipation 28 Energy Generation 15 Energy Capacity 400 Matter Stores 300 Matter Capacity 300 Sight Range 18 Terrain Scan Range 16 Terrain Scan Density 10 Evasion (%) 55 Targeting Accuracy 6 Recoil Reduction 1 Item Schematics ----------------- None Robot Schematics ------------------ None Fabricated ------------ Nothing Alien Tech Used ----------------- None Achievements -------------- None Challenges ------------ None Game ------ Seed FlakHardcellMediator Manual? 0 Play Time 00:26:25 Cumulative 9.6 hours Start 2022.04.28 @ 20:54:57 End 2022.04.28 @ 21:35:25 Sessions 1 Manual Loads 0 Difficulty Rogue Special Mode None Game No. 8 Rogue 8 Adventurer 0 Explorer 0 Win Type - Total 0 Types 0/0/0/0/0/0/0/0/0 Lore% 2 Gallery% 13 Achievement% 11 Wizard Run 0 Options --------- ASCII 0 Keyboard 0 Movement Mouse Keybinds 0 Fullscreen 2 Font 18/Smallcaps Map View 76x50 Tactical HUD 1 Map Filters NONE Filters NONE Steam 1 RUN: c29a8ffb-b252-430d-8698-d643477db7fe